lending/lending_fUSD_20240621
["ID","MTS","AMOUNT","RATE_DAILY","PERIOD"]
[330075653,1718988646531,-503.92,0.00021917,4]
[330075654,1718988646540,-500.0,0.00021917,4]
[330075655,1718988646549,-627.93,0.00021917,4]
[330075656,1718988646558,-927.53,0.00021917,4]
[330075657,1718988646567,-2890.63,0.00021917,4]
[330075658,1718988646576,-500.0,0.00021917,4]
[330075660,1718988646587,-617.49,0.00021917,4]
[330075662,1718988646597,-500.0,0.00021917,4]
[330075664,1718988646609,-1960.61,0.00021917,4]
[330075665,1718988646618,-3248.96,0.00021917,4]
[330075666,1718988646627,-1185.05,0.00021917,4]
[330075667,1718988646636,-500.0,0.00021917,4]
[330075668,1718988646646,-500.0,0.00021917,4]
[330075669,1718988646655,-713.85,0.00021917,4]
[330075670,1718988646664,-500.0,0.00021917,4]
[330075671,1718988646679,-595.68,0.00021917,4]
[330075672,1718988646688,-1015.43,0.00021917,4]
[330075673,1718988646698,-508.4,0.00021917,4]
[330075674,1718988646708,-631.99,0.00021917,4]
[330075675,1718988646719,-260.11717961,0.00021917,4]
[330075676,1718988646728,-1049.35,0.00021917,4]
[330075677,1718988646737,-500.0,0.00021917,4]
[330075678,1718988646747,-762.99,0.00021917,4]
[330075679,1718988646758,-1075.92,0.00021917,4]
[330075680,1718988646767,-500.0,0.00021917,4]
[330075681,1718988646777,-182.44998176,0.00021917,4]
[330075682,1718988646790,-317.55001824,0.00021917,4]
[330075683,1718988646799,-6602.35,0.00021917,4]
[330075684,1718988646808,-500.0,0.00021917,4]
[330075685,1718988646818,-500.0,0.00021917,4]
[330075686,1718988646827,-605.96,0.00021917,4]
[330075687,1718988646837,-500.0,0.00021917,4]
[330075688,1718988646847,-500.0,0.00021917,4]
[330075689,1718988646856,-2137.07,0.00021917,4]
[330075690,1718988646866,-511.82,0.00021917,4]
[330075691,1718988646875,-1369.07,0.00021917,4]
[330075692,1718988646885,-500.0,0.00021917,4]
[330075693,1718988646894,-500.0,0.00021917,4]
[330075694,1718988646903,-1830.78,0.00021917,4]
[330075695,1718988646912,-1346.43,0.00021917,4]
[330075696,1718988646922,-500.0,0.00021917,4]
[330075697,1718988646931,-821.04,0.00021917,4]
[330075698,1718988646940,-5945.78,0.00021917,4]
[330075699,1718988646949,-500.0,0.00021917,4]
[330075700,1718988646958,-500.0,0.00021917,4]
[330075701,1718988646968,-500.0,0.00021917,4]
[330075702,1718988646977,-500.0,0.00021917,4]
[330075703,1718988646986,-5134.75,0.00021917,4]
[330075704,1718988646996,-500.0,0.00021917,4]
[330075705,1718988647005,-500.0,0.00021917,4]
[330075706,1718988647014,-1674.64,0.00021917,4]
[330075707,1718988647024,-500.0,0.00021917,4]
[330075708,1718988647033,-500.0,0.00021917,4]
[330075709,1718988647042,-1667.16,0.00021917,4]
[330075710,1718988647052,-1223.11,0.00021917,4]
[330075711,1718988647061,-500.0,0.00021917,4]
[330075712,1718988647071,-500.0,0.00021917,4]
[330075713,1718988647081,-500.0,0.00021917,4]
[330075714,1718988647091,-1585.13,0.00021917,4]
[330075715,1718988647100,-1641.41,0.00021917,4]
[330075716,1718988647110,-500.0,0.00021917,4]
[330075717,1718988647120,-500.0,0.00021917,4]
[330075718,1718988647129,-430.26523817,0.00021917,4]
[330075719,1718988647139,-540.42,0.00021917,4]
[330075720,1718988647148,-500.0,0.00021917,4]
[330075721,1718988647157,-500.0,0.00021917,4]
[330075722,1718988647168,-543.46119632,0.00021917,4]
[330075723,1718988647177,-500.0,0.00021917,4]
[330075724,1718988647186,-500.0,0.00021917,4]
[330075725,1718988647195,-849.95,0.00021917,4]
[330075726,1718988647204,-577.17,0.00021917,4]
[330075727,1718988647213,-1010.38,0.00021917,4]
[330075728,1718988647223,-1974.37,0.00021917,4]
[330075729,1718988647232,-1438.81,0.00021917,4]
[330075730,1718988647241,-1211.75,0.00021917,4]
[330075731,1718988647250,-500.0,0.00021917,4]
[330075732,1718988647260,-500.0,0.00021917,4]
[330075733,1718988647268,-713.59,0.00021917,4]
[330075734,1718988647278,-500.0,0.00021917,4]
[330075735,1718988647287,-673.9,0.00021917,4]
[330075736,1718988647296,-500.0,0.00021917,4]
[330075737,1718988647305,-500.0,0.00021917,4]
[330075738,1718988647314,-260.82220431,0.00021917,4]
[330075739,1718988647323,-595.96,0.00021917,4]
[330075740,1718988647332,-2476.51,0.00021917,4]
[330075741,1718988647342,-4499.45,0.00021917,4]
[330075742,1718988647351,-500.0,0.00021917,4]
[330075743,1718988647360,-939.53,0.00021917,4]
[330075744,1718988647370,-3846.77,0.00021917,4]
[330075745,1718988647380,-4147.35,0.00021917,4]
[330075746,1718988647389,-5978.81,0.00021917,4]
[330075747,1718988647398,-419.29156615,0.00021917,4]
[330075748,1718988647408,-500.0,0.00021917,4]
[330075749,1718988647417,-780.85,0.00021917,4]
[330075750,1718988647427,-500.0,0.00021917,4]
[330075751,1718988647436,-2230.36,0.00021917,4]
[330075752,1718988647445,-812.96,0.00021917,4]
[330075753,1718988647455,-500.0,0.00021917,4]
[330075754,1718988647464,-500.0,0.00021917,4]
[330075755,1718988647474,-500.0,0.00021917,4]
[330075756,1718988647483,-500.0,0.00021917,4]
[330075757,1718988647492,-1324.93,0.00021917,4]
[330075758,1718988647501,-583.22,0.00021917,4]
[330075759,1718988647510,-2084.17,0.00021917,4]
[330075760,1718988647520,-500.0,0.00021917,4]
[330075761,1718988647530,-1341.26,0.00021917,4]
[330075762,1718988647539,-500.0,0.00021917,4]
[330075763,1718988647548,-1548.98,0.00021917,4]
[330075764,1718988647558,-527.6,0.00021917,4]
[330075765,1718988647567,-500.0,0.00021917,4]
[330075766,1718988647577,-500.0,0.00021917,4]
[330075767,1718988647588,-500.0,0.00021917,4]
[330075768,1718988647597,-716.45,0.00021917,4]
[330075769,1718988647606,-1675.29,0.00021917,4]
[330075770,1718988647615,-8074.78,0.00021917,4]
[330075771,1718988647624,-500.0,0.00021917,4]
[330075772,1718988647633,-918.0,0.00021917,4]
[330075773,1718988647643,-514.91,0.00021917,4]
[330075774,1718988647652,-2605.54,0.00021917,4]
[330075775,1718988647661,-500.0,0.00021917,4]
[330075776,1718988647685,-2341.37,0.00021917,4]
[330075777,1718988647695,-904.15,0.00021917,4]
[330075778,1718988647705,-1662.99,0.00021917,4]
[330075779,1718988647715,-500.0,0.00021917,4]
[330075780,1718988647724,-737.08,0.00021917,4]
[330075781,1718988647734,-500.0,0.00021917,4]
[330075782,1718988647744,-10448.62,0.00021917,4]
[330075783,1718988647754,-500.0,0.00021917,4]
[330075784,1718988647765,-500.0,0.00021917,4]
[330075785,1718988647777,-522.55170028,0.00021917,4]
[330075786,1718988647788,-1063.37,0.00021917,4]
[330075787,1718988647797,-2761.86,0.00021917,4]
[330075788,1718988647807,-500.0,0.00021917,4]
[330075789,1718988647817,-854.49,0.00021917,4]
[330075790,1718988647827,-863.55,0.00021917,4]
[330075791,1718988647836,-1414.89,0.00021917,4]
[330075792,1718988647846,-500.0,0.00021917,4]
[330075793,1718988647855,-523.56,0.00021917,4]
[330075794,1718988647865,-3786.0,0.00021917,4]
[330075795,1718988647874,-500.0,0.00021917,4]
[330075796,1718988647884,-1986.91,0.00021917,4]
[330075797,1718988647894,-552.91,0.00021917,4]
[330075798,1718988647903,-500.0,0.00021917,4]
[330075799,1718988647913,-500.0,0.00021917,4]
[330075800,1718988647924,-527.99,0.00021917,4]
[330075801,1718988647934,-500.0,0.00021917,4]
[330075802,1718988647944,-500.0,0.00021917,4]
[330075803,1718988647953,-11056.85,0.00021917,4]
[330075804,1718988647963,-500.0,0.00021917,4]
[330075805,1718988647972,-1478.35,0.00021917,4]
[330075806,1718988647981,-1641.43,0.00021917,4]
[330075807,1718988647991,-500.0,0.00021917,4]
[330075808,1718988648000,-638.94,0.00021917,4]
[330075809,1718988648010,-8546.05,0.00021917,4]
[330075810,1718988648020,-880.66643959,0.00021917,4]
[330075811,1718988648045,-221.43356041,0.00021917,4]
[330075812,1718988648054,-49.77143959,0.00021917,4]
[330075813,1718988649008,-283.44364674,0.000219,2]
[330075814,1718988649018,-158.80388924,0.00021905,2]
[330075815,1718988649028,-2459.71856041,0.00021917,4]
[330075816,1718988649038,-246.62938777,0.00021917,4]
[330075817,1718988649048,-3960.07,0.00021917,4]
[330075818,1718988649057,-2089.56,0.00021917,4]
[330075819,1718988649067,-503.09,0.00021917,4]
[330075820,1718988649076,-500.0,0.00021917,4]
[330075821,1718988649086,-500.0,0.00021917,4]
[330075822,1718988649096,-598.0,0.00021917,4]
[330075823,1718988649106,-5212.45,0.00021917,4]
[330075824,1718988649116,-500.0,0.00021917,4]
[330075825,1718988649126,-842.59,0.00021917,4]
[330075826,1718988649136,-2535.72,0.00021917,4]
[330075827,1718988649145,-500.0,0.00021917,4]
[330075828,1718988649154,-2265.93198254,0.00021917,4]
[330075829,1718988649174,-1031.28801746,0.00021917,4]
[330075830,1718988649184,-500.0,0.00021917,4]
[330075831,1718988649195,-401.21844254,0.00021917,4]
[330075832,1718988649207,-4598.78155746,0.00021917,4]
[330075833,1718988649219,-4857.72,0.00021917,4]
[330075834,1718988649229,-599.6364252,0.00021917,4]
[330075835,1718988649240,-1208.66,0.00021917,4]
[330075836,1718988649250,-500.0,0.00021917,4]
[330075837,1718988649260,-500.0,0.00021917,4]
[330075838,1718988649271,-745.93,0.00021917,4]
[330075839,1718988649281,-1166.84,0.00021917,4]
[330075840,1718988649292,-500.0,0.00021917,4]
[330075841,1718988649302,-1034.32,0.00021917,4]
[330075842,1718988649312,-500.0,0.00021917,7]
[330075843,1718988649322,-500.0,0.00021917,4]
[330075844,1718988649332,-675.87,0.00021917,4]
[330075845,1718988649344,-2263.82,0.00021917,4]
[330075846,1718988649353,-500.0,0.00021917,4]
[330075847,1718988649364,-511.62625129,0.00021917,4]
[330075848,1718988649374,-5840.97,0.00021917,4]
[330075849,1718988649384,-500.0,0.00021917,4]
[330075850,1718988649394,-989.31,0.00021917,4]
[330075851,1718988649404,-1329.84,0.00021917,4]
[330075852,1718988649415,-500.0,0.00021917,4]
[330075853,1718988649425,-500.0,0.00021917,4]
[330075854,1718988649436,-1244.41,0.00021917,4]
[330075855,1718988649446,-1110.3,0.00021917,4]
[330075856,1718988649456,-1120.29,0.00021917,4]
[330075857,1718988649467,-529.2,0.00021917,4]
[330075858,1718988649477,-1939.22,0.00021917,4]
[330075859,1718988649488,-625.53,0.00021917,4]
[330075860,1718988649497,-1049.53,0.00021917,4]
[330075861,1718988649509,-500.0,0.00021917,4]
[330075862,1718988649519,-500.0,0.00021917,4]
[330075863,1718988649529,-500.0,0.00021917,4]
[330075864,1718988649539,-500.0,0.00021917,4]
[330075865,1718988649549,-500.0,0.00021917,4]
[330075866,1718988649559,-2306.35,0.00021917,4]
[330075867,1718988649569,-500.0,0.00021917,4]
[330075868,1718988649579,-500.0,0.00021917,4]
[330075869,1718988649590,-3450.84,0.00021917,4]
[330075870,1718988649600,-500.0,0.00021917,4]
[330075871,1718988649611,-500.0,0.00021917,4]
[330075872,1718988649621,-5895.79,0.00021917,4]
[330075873,1718988649630,-500.0,0.00021917,4]
[330075874,1718988649641,-4036.12,0.00021917,4]
[330075875,1718988649651,-500.0,0.00021917,4]
[330075876,1718988649662,-500.0,0.00021917,4]
[330075877,1718988649677,-500.0,0.00021917,4]
[330075878,1718988649688,-3524.32,0.00021917,4]
[330075879,1718988649698,-1552.35,0.00021917,4]
[330075880,1718988649707,-918.31,0.00021917,4]
[330075881,1718988649719,-536.86,0.00021917,4]
[330075882,1718988649729,-500.0,0.00021917,4]
[330075883,1718988649739,-5759.1,0.00021917,4]
[330075884,1718988649753,-500.0,0.00021917,4]
[330075885,1718988649763,-600.92,0.00021917,4]
[330075886,1718988649773,-573.57,0.00021917,4]
[330075887,1718988649783,-2593.5,0.00021917,4]
[330075888,1718988649793,-614.38,0.00021917,4]
[330075889,1718988649806,-500.0,0.00021917,2]
[330075890,1718988649816,-125.52177946,0.00021917,4]
[330075891,1718988649968,-273.36204567,0.00021917,4]
[330075892,1718988649984,-752.79796392,0.00021917,4]
[330075893,1718988649996,-1142.55821095,0.00021917,4]
[330075894,1718988650006,-500.0,0.00021917,4]
[330075895,1718988650016,-500.0,0.00021917,4]
[330075896,1718988650026,-500.0,0.00021917,4]
[330075897,1718988650036,-391.94567901,0.00021917,4]
[330075898,1718988650056,-108.05432099,0.00021917,4]
[330075899,1718988650066,-348.70887574,0.00021917,4]
[330075900,1718988650078,-151.29112426,0.00021917,4]
[330075901,1718988650088,-273.37212941,0.00021917,4]
[330075902,1718988650100,-226.62787059,0.00021917,4]
[330075903,1718988650110,-500.0,0.00021917,4]
[330075904,1718988650121,-762.32351696,0.00021917,4]
[330075905,1718988650133,-596.34648304,0.00021917,4]
[330075906,1718988650143,-5098.20524663,0.00021917,4]
[330075907,1718988652131,-1580.04475337,0.00021917,4]
[330075908,1718988652140,-1704.8,0.00021917,4]
[330075909,1718988652149,-500.0,0.00021917,4]
[330075910,1718988652159,-299.84873956,0.00021917,4]
[330075911,1718988652168,-789.83,0.00021917,4]
[330075912,1718988652177,-500.0,0.00021917,2]
[330075913,1718988652187,-330.63676377,0.00021917,4]
[330075914,1718988652196,-500.0,0.00021917,4]
[330075915,1718988652205,-500.0,0.00021917,4]
[330075916,1718988652215,-2412.11,0.00021917,4]
[330075917,1718988652224,-580.39,0.00021917,4]
[330075918,1718988652233,-500.0,0.00021917,4]
[330075919,1718988652243,-4472.25,0.00021917,4]
[330075920,1718988652252,-1727.55,0.00021917,4]
[330075921,1718988652262,-1153.51,0.00021917,4]
[330075922,1718988652271,-888.36,0.00021917,4]
[330075923,1718988652281,-500.0,0.00021917,4]
[330075924,1718988652290,-559.95,0.00021917,4]
[330075925,1718988652299,-1728.03,0.00021917,4]
[330075926,1718988652308,-4861.89063983,0.00021917,4]
[330075927,1718988652320,-1710.75000075,0.00021917,4]
[330075928,1718988652331,-465.19651332,0.00021917,4]
[330075929,1718988652358,-6255.5328461,0.00021917,4]
[330075930,1718988652367,-500.0,0.00021917,4]
[330075931,1718988652376,-840.1,0.00021917,4]
[330075932,1718988652385,-551.97,0.00021917,4]
[330075933,1718988652395,-500.0,0.00021917,4]
[330075934,1718988652404,-500.0,0.00021917,4]
[330075935,1718988652413,-500.0,0.00021917,4]
[330075936,1718988652423,-5663.03,0.00021917,4]
[330075937,1718988652433,-172.35,0.00021918,2]
[330075938,1718988652442,-17739.8348915,0.00022081,2]
[330075939,1718988652451,-11464.5042463,0.00022091,2]
[330075940,1718988652463,-491.21715281,0.00022091,2]
[330075941,1718988652473,-85.81036256,0.00022136,2]
[330075942,1718988652485,-481.18963744,0.00022136,2]
[330075943,1718988652495,-414.82036256,0.00022164,2]
[330075944,1718988652508,-454.68489641,0.00022164,2]
[330075945,1718988652520,-6196.59169592,0.00022164,2]
[330075946,1718988652533,-1680.37818217,0.00022164,2]
[330075947,1718988652545,-2776.52155191,0.00022164,2]
[330075948,1718988652557,-432.72471008,0.00022164,2]
[330075949,1718988652566,-161.25508038,0.00022175,2]
[330075950,1718988652575,-300.64898162,0.0002218,2]
[330075951,1718988652590,-646.11840695,0.0002218,2]
[330075952,1718988652601,-1000.54103258,0.0002218,2]
[330075953,1718988652612,-705.0,0.0002218,2]
[330075954,1718988652623,-673.22,0.0002218,2]
[330075955,1718988652634,-589.88684785,0.0002218,2]
[330075956,1718988652645,-430.09096335,0.0002218,2]
[330075957,1718988652656,-795.63106483,0.0002218,2]
[330075958,1718988652709,-65818.20226882,0.0002218,2]
[330075959,1718988652718,-68181.79773118,0.00022181,2]
[330075960,1718988652729,-1014.8698506,0.00022181,2]
[330075961,1718988652740,-1542.7683886,0.00022181,2]
[330075962,1718988652751,-1019.99027376,0.00022181,2]
[330075963,1718988652764,-34679.58310486,0.00022181,2]
[330075964,1718988652773,-500.0,0.0002219,4]
[330075965,1718988652782,-1823.85,0.0002219,4]
[330075966,1718988652791,-599.65,0.0002219,4]
[330075967,1718988652800,-500.0,0.0002219,4]
[330075968,1718988652809,-1888.47,0.0002219,4]
[330075969,1718988652818,-500.0,0.0002219,4]
[330075970,1718988652827,-1576.88,0.0002219,4]
[330075971,1718988652836,-500.0,0.0002219,4]
[330075972,1718988652847,-500.0,0.0002219,4]
[330075973,1718988652856,-500.0,0.0002219,4]
[330075974,1718988652865,-1625.65,0.0002219,4]
[330075975,1718988652874,-1598.06,0.0002219,4]
[330075976,1718988652883,-1196.97,0.0002219,4]
[330075977,1718988652893,-510.88,0.0002219,4]
[330075978,1718988652902,-1073.08,0.0002219,4]
[330075979,1718988652912,-1551.4,0.0002219,4]
[330075980,1718988652922,-1367.63,0.0002219,4]
[330075981,1718988652931,-500.0,0.0002219,4]
[330075982,1718988652942,-2060.44,0.0002219,4]
[330075983,1718988652952,-1409.32,0.0002219,4]
[330075984,1718988652962,-1520.86,0.0002219,4]
[330075985,1718988652972,-642.88,0.0002219,4]
[330075986,1718988652982,-1051.57,0.0002219,4]
[330075987,1718988652991,-1798.52,0.0002219,4]
[330075988,1718988653001,-500.38,0.0002219,4]
[330075989,1718988653010,-500.0,0.0002219,4]
[330075990,1718988653020,-500.0,0.0002219,4]
[330075991,1718988653032,-657.35,0.0002219,4]
[330075992,1718988653041,-4726.55,0.0002219,4]
[330075993,1718988653051,-2158.37,0.0002219,4]
[330075994,1718988653061,-1042.38,0.0002219,4]
[330075995,1718988653070,-2436.21,0.0002219,4]
[330075996,1718988653080,-500.0,0.0002219,4]
[330075997,1718988653090,-1682.65,0.0002219,4]
[330075998,1718988653099,-11307.64,0.0002219,4]
[330075999,1718988653109,-1361.8,0.0002219,4]
[330076000,1718988653118,-1878.23,0.0002219,4]
[330076001,1718988653135,-2020.8,0.0002219,4]
[330076002,1718988653148,-2818.19,0.0002219,4]
[330076003,1718988653158,-500.0,0.0002219,4]
[330076004,1718988653168,-3996.55,0.0002219,4]
[330076005,1718988653177,-748.84,0.0002219,4]
[330076006,1718988653187,-1236.71,0.0002219,4]
[330076007,1718988653197,-2810.41,0.0002219,4]
[330076008,1718988653207,-2152.67,0.0002219,4]
[330076009,1718988653216,-865.33,0.0002219,4]
[330076010,1718988653226,-889.18,0.0002219,4]
[330076011,1718988653236,-1076.4,0.0002219,4]
[330076012,1718988653246,-1371.21,0.0002219,4]
[330076013,1718988653255,-6915.79,0.0002219,4]
[330076014,1718988653265,-718.84,0.0002219,4]
[330076015,1718988653276,-3445.15,0.0002219,4]
[330076016,1718988653285,-654.46,0.0002219,4]
[330076017,1718988653295,-5843.53,0.0002219,4]
[330076018,1718988653305,-2941.9,0.0002219,4]
[330076019,1718988653315,-7563.55,0.0002219,4]
[330076020,1718988653325,-688.56,0.0002219,4]
[330076021,1718988653334,-2068.75,0.0002219,4]
[330076022,1718988653346,-545.04,0.0002219,4]
[330076023,1718988653355,-1189.94,0.0002219,4]
[330076024,1718988653365,-1564.89,0.0002219,4]
[330076025,1718988653374,-796.65,0.0002219,4]
[330076026,1718988653384,-2127.02,0.0002219,4]
[330076027,1718988653395,-1550.54,0.0002219,4]
[330076028,1718988653405,-956.11,0.0002219,4]
[330076029,1718988653415,-1390.33,0.0002219,4]
[330076030,1718988653425,-743.19,0.0002219,4]
[330076031,1718988653435,-2851.61,0.0002219,4]
[330076032,1718988653444,-1174.32,0.0002219,4]
[330076033,1718988653454,-500.0,0.00022191,4]
[330076034,1718988653464,-500.0,0.00022191,4]
[330076035,1718988653474,-438.68,0.00022191,4]
[330076036,1718988653484,-369.42,0.00022191,4]
[330076037,1718988653493,-199.3,0.00022191,4]
[330076038,1718988653503,-201.65,0.00022191,4]
[330076039,1718988653513,-360.79,0.00022191,4]
[330076040,1718988653523,-939.45,0.00022191,4]
[330076041,1718988653652,-315.47,0.00022191,4]
[330076042,1718988653662,-851.75,0.00022191,4]
[330076043,1718988653675,-1715.23,0.00022191,4]
[330076044,1718988653685,-500.0,0.00022191,4]
[330076045,1718988653694,-395.6,0.00022191,4]
[330076046,1718988653703,-500.0,0.00022191,4]
[330076047,1718988653714,-473.63,0.00022191,4]
[330076048,1718988653724,-500.0,0.00022191,4]
[330076049,1718988653733,-245.87,0.00022191,4]
[330076050,1718988653743,-500.0,0.00022191,4]
[330076051,1718988653754,-589.86,0.00022191,4]
[330076052,1718988653763,-500.0,0.00022191,4]
[330076053,1718988653773,-614.73,0.00022191,4]
[330076054,1718988653782,-1438.3,0.00022191,4]
[330076055,1718988653791,-1302.1,0.00022191,4]
[330076056,1718988653801,-500.0,0.00022191,4]
[330076057,1718988653810,-500.0,0.00022191,4]
[330076058,1718988653820,-500.0,0.00022191,4]
[330076059,1718988653829,-791.04,0.00022191,4]
[330076060,1718988653840,-777.09,0.00022191,4]
[330076061,1718988653849,-500.0,0.00022191,4]
[330076062,1718988653859,-500.0,0.00022191,4]
[330076063,1718988653868,-500.0,0.00022191,4]
[330076064,1718988653878,-2238.19,0.00022191,4]
[330076065,1718988653887,-500.0,0.00022191,4]
[330076066,1718988653896,-837.21,0.00022191,4]
[330076067,1718988653906,-500.0,0.00022191,4]
[330076068,1718988653915,-1046.79,0.00022191,4]
[330076069,1718988653925,-500.0,0.00022191,4]
[330076070,1718988653934,-1389.4,0.00022191,4]
[330076071,1718988653943,-500.0,0.00022191,4]
[330076072,1718988653953,-1901.88,0.00022191,4]
[330076073,1718988653963,-829.0,0.00022191,4]
[330076074,1718988653972,-500.0,0.00022191,4]
[330076075,1718988653983,-500.0,0.00022191,4]
[330076076,1718988653992,-616.18,0.00022191,4]
[330076077,1718988654002,-500.0,0.00022191,4]
[330076078,1718988654012,-500.0,0.00022191,4]
[330076079,1718988654021,-1055.53,0.00022191,4]
[330076080,1718988654030,-500.0,0.00022191,4]
[330076081,1718988654040,-500.0,0.00022191,4]
[330076082,1718988654049,-500.0,0.00022191,4]
[330076083,1718988654059,-603.31,0.00022191,4]
[330076084,1718988654068,-500.0,0.00022191,4]
[330076085,1718988654078,-500.0,0.00022191,4]
[330076086,1718988654087,-1060.7,0.00022191,4]
[330076087,1718988654098,-500.0,0.00022191,4]
[330076088,1718988654107,-500.0,0.00022191,4]
[330076089,1718988654116,-500.0,0.00022191,4]
[330076090,1718988654126,-590.89,0.00022191,4]
[330076091,1718988654135,-500.0,0.00022191,4]
[330076092,1718988654144,-1450.46947094,0.00022191,4]
[330076093,1718988654161,-382.84633833,0.00022191,4]
[330076094,1718988654173,-602.48419073,0.00022191,4]
[330076095,1718988654182,-500.0,0.00022191,4]
[330076096,1718988654191,-1711.01,0.00022191,4]
[330076097,1718988654201,-1054.47,0.00022191,4]
[330076098,1718988654211,-500.0,0.00022191,4]
[330076099,1718988654220,-649.19,0.00022191,4]
[330076100,1718988654229,-500.0,0.00022191,4]
[330076101,1718988654239,-500.0,0.00022191,4]
[330076102,1718988654248,-500.0,0.00022191,4]
[330076103,1718988654258,-500.0,0.00022191,4]
[330076104,1718988654268,-500.0,0.00022191,4]
[330076105,1718988654277,-500.0,0.00022191,4]
[330076106,1718988654286,-1817.75,0.00022191,4]
[330076107,1718988654296,-500.0,0.00022191,4]
[330076108,1718988654306,-1320.43,0.00022191,4]
[330076109,1718988654316,-599.27,0.00022191,4]
[330076110,1718988654325,-2004.24,0.00022191,4]
[330076111,1718988654335,-500.0,0.00022191,4]
[330076112,1718988654347,-500.0,0.00022191,4]
[330076113,1718988654357,-503.34,0.00022191,4]
[330076114,1718988654366,-2930.94,0.00022191,4]
[330076115,1718988654380,-511.68,0.00022191,4]
[330076116,1718988654390,-500.0,0.00022191,4]
[330076117,1718988654400,-1200.91,0.00022191,4]
[330076118,1718988654410,-500.0,0.00022191,4]
[330076119,1718988654419,-500.0,0.00022191,4]
[330076120,1718988654428,-500.0,0.00022191,4]
[330076121,1718988654438,-500.0,0.00022191,4]
[330076122,1718988654448,-1702.91,0.00022191,4]
[330076123,1718988654457,-1034.11,0.00022191,4]
[330076124,1718988654467,-636.74200091,0.00022191,4]
[330076125,1718988654476,-755.09,0.00022191,4]
[330076126,1718988654486,-692.7,0.00022191,4]
[330076127,1718988654496,-500.0,0.00022191,4]
[330076128,1718988654505,-500.0,0.00022191,4]
[330076129,1718988654515,-628.41,0.00022191,4]
[330076130,1718988654524,-680.92,0.00022191,4]
[330076131,1718988654534,-924.86,0.00022191,4]
[330076132,1718988654543,-500.0,0.00022191,4]
[330076133,1718988654553,-986.49,0.00022191,4]
[330076134,1718988654562,-775.57,0.00022191,4]
[330076135,1718988654572,-1608.03,0.00022191,4]
[330076136,1718988654582,-855.67,0.00022191,4]
[330076137,1718988654594,-500.0,0.00022191,4]
[330076138,1718988654603,-1267.33,0.00022191,4]
[330076139,1718988654612,-500.0,0.00022191,4]
[330076140,1718988654621,-869.72,0.00022191,4]
[330076141,1718988654631,-508.96,0.00022191,4]
[330076142,1718988654640,-1118.92,0.00022191,4]
[330076143,1718988654649,-667.49,0.00022191,4]
[330076144,1718988654658,-1629.65,0.00022191,4]
[330076145,1718988654668,-575.12,0.00022191,4]
[330076146,1718988654678,-617.17228198,0.00022191,4]
[330076147,1718988654691,-660.21,0.00022191,4]
[330076148,1718988654701,-500.0,0.00022191,4]
[330076149,1718988654711,-1149.07,0.00022191,4]
[330076150,1718988654720,-500.0,0.00022191,4]
[330076151,1718988654730,-724.25,0.00022191,4]
[330076152,1718988654741,-963.77,0.00022191,4]
[330076153,1718988654751,-802.63,0.00022191,4]
[330076154,1718988654762,-1202.9,0.00022191,4]
[330076155,1718988654772,-500.0,0.00022191,4]